fUST/lending_fUST_20251213
["ID","MTS","AMOUNT","RATE_DAILY","PERIOD"]
[398397363,1765601439068,-363.253205,0.00027318,7]
[398397364,1765601439078,-363.253205,0.00027318,7]
[398397365,1765601439087,-363.253205,0.00027318,7]
[398397366,1765601439096,-363.2532,0.00027318,7]
[398397367,1765601439106,-151.0,0.00027318,7]
[398397368,1765601439116,-151.0,0.00027318,7]
[398397369,1765601439125,-151.0,0.00027318,7]
[398397370,1765601439134,-496.0,0.00027341,2]
[398397371,1765601439143,-1100.0,0.00027342,7]
[398397372,1765601439152,-151.0,0.00027397,7]
[398397373,1765601439162,-151.0,0.00027397,7]
[398397374,1765601439171,-151.0,0.00027397,7]
[398397375,1765601439181,-151.0,0.00027397,7]
[398397376,1765601439190,-151.0,0.00027397,7]
[398397377,1765601439199,-151.0,0.00027397,7]
[398397378,1765601439209,-151.0,0.00027397,7]
[398397379,1765601439218,-151.0,0.00027397,7]
[398397380,1765601439227,-151.0,0.00027397,7]
[398397381,1765601439237,-151.0,0.00027397,7]
[398397382,1765601439246,-151.0,0.00027397,7]
[398397383,1765601439255,-151.0,0.00027397,7]
[398397384,1765601439267,-160.622729,0.00027397,7]
[398397385,1765601439276,-500.0,0.00027397,15]
[398397386,1765601439286,-500.0,0.00027397,5]
[398397387,1765601439295,-150.0,0.00027397,5]
[398397388,1765601439304,-150.0,0.00027397,5]
[398397389,1765601439313,-496.0,0.00027478,2]
[398397390,1765601439322,-179.89206476,0.00027488,2]
[398397391,1765601439332,-155.0,0.00027562,25]
[398397392,1765601439341,-663.93287602,0.00027602,2]
[398397393,1765601439350,-496.0,0.00027615,2]
[398397394,1765601439359,-192.5119955,0.00027616,30]
[398397395,1765601439369,-192.5119955,0.00027616,30]
[398397396,1765601439378,-192.5119955,0.00027616,30]
[398397397,1765601439387,-192.5119955,0.00027616,30]
[398397398,1765601439396,-192.5119955,0.00027616,30]
[398397399,1765601439405,-192.5119955,0.00027616,30]
[398397400,1765601439415,-380.1563411,0.00027616,30]
[398397401,1765601439424,-192.5119955,0.00027616,30]
[398397402,1765601439434,-192.5119955,0.00027616,30]
[398397403,1765601439443,-192.5119955,0.00027616,30]
[398397404,1765601439452,-192.5119955,0.00027616,30]
[398397405,1765601439462,-192.5119955,0.00027616,30]
[398397406,1765601439471,-192.5119955,0.00027616,30]
[398397407,1765601439480,-192.5119955,0.00027616,30]
[398397408,1765601439490,-192.5119955,0.00027616,30]
[398397409,1765601439499,-192.5119955,0.00027616,30]
[398397410,1765601439508,-192.5119955,0.00027616,30]
[398397411,1765601439518,-342.56,0.000277,3]
[398397412,1765601439527,-154.2698473,0.00027711,2]
[398397413,1765601439537,-496.0,0.00027752,2]
[398397414,1765601439546,-160.0,0.00027762,5]
[398397415,1765601439556,-512.0,0.00027889,2]
[398397416,1765601439565,-40098.4304909,0.00027935,2]
[398397417,1765601439574,-2000.0,0.00027945,120]
[398397418,1765601439584,-500.0,0.00027945,15]
[398397419,1765601439594,-1000.0,0.00027945,5]
[398397420,1765601439603,-250.0,0.00027945,5]
[398397421,1765601439612,-250.0,0.00027945,5]
[398397422,1765601439621,-302.1700238,0.00027945,30]
[398397423,1765601439630,-5000.0,0.00028,2]
[398397424,1765601439640,-15285.59383218,0.00028,2]
[398397425,1765601439649,-2000.47552301,0.00028,2]
[398397426,1765601439658,-378.0,0.00028,7]
[398397427,1765601439668,-1000.0,0.00028,28]
[398397428,1765601439676,-19400.0,0.00028,10]
[398397429,1765601439686,-500.0,0.00028,120]
[398397430,1765601439695,-688.49839244,0.0002815,2]
[398397431,1765601439704,-587.0,0.00028212,2]
[398397432,1765601439713,-2000.0,0.00028219,120]
[398397433,1765601439723,-40098.4304909,0.00028428,2]
[398397434,1765601439732,-1100.0,0.00028438,14]
[398397435,1765601439742,-389.5472649,0.00028438,30]
[398397436,1765601439751,-192.5119955,0.00028438,30]
[398397437,1765601439760,-192.5119955,0.00028438,30]
[398397438,1765601439769,-192.5119955,0.00028438,30]
[398397439,1765601439778,-192.5119955,0.00028438,30]
[398397440,1765601439787,-192.5119955,0.00028438,30]
[398397441,1765601439796,-192.5119955,0.00028438,30]
[398397442,1765601439805,-192.5119955,0.00028438,30]
[398397443,1765601439815,-1002.60499231,0.0002849,120]
[398397444,1765601439824,-217.91661342,0.0002849,2]
[398397446,1765601439833,-2000.0,0.00028493,120]
[398397448,1765601439842,-500.0,0.00028493,15]
[398397450,1765601439852,-334.51142488,0.00028493,5]
[398397452,1765601439860,-350.0,0.00028493,5]
[398397454,1765601439869,-350.0,0.00028493,5]
[398397456,1765601439879,-618.24,0.000285,14]
[398397459,1765601439890,-14884.32,0.000285,2]
[398397460,1765601439900,-631.2827289,0.00028698,2]
[398397462,1765601439909,-179.05849699,0.00028725,2]
[398397465,1765601439919,-218.81094389,0.00028735,2]
[398397466,1765601439928,-232.78809857,0.00028736,2]
[398397468,1765601439937,-40098.4304909,0.0002875,2]
[398397471,1765601439947,-26809.88126952,0.0002876,2]
[398397473,1765601439956,-4000.0,0.0002876,5]
[398397475,1765601439966,-752.08603865,0.0002876,120]
[398397477,1765601439975,-2000.0,0.00028767,120]
[398397479,1765601439984,-173.9197525,0.00028767,30]
[398397480,1765601439994,-603.1433788,0.00028767,30]
[398397483,1765601440003,-151.0,0.000288,17]
[398397485,1765601440012,-888.1172838,0.00029,2]
[398397487,1765601440021,-2000.0,0.00029041,120]
[398397502,1765601440163,-500.0,0.00029041,15]
[398397504,1765601440174,-450.0,0.00029041,5]
[398397506,1765601440184,-450.0,0.00029041,5]
[398397508,1765601440193,-1100.0,0.0002926,14]
[398397511,1765601440203,-2000.0,0.00029315,120]
[398397513,1765601440212,-8000.0,0.000294,7]
[398397514,1765601440221,-151.0,0.000294,14]
[398397516,1765601440230,-1501.409745,0.000295,2]
[398397518,1765601440239,-2000.0,0.00029589,120]
[398397521,1765601440249,-500.0,0.00029589,15]
[398397523,1765601440262,-550.0,0.00029589,5]
[398397525,1765601440272,-550.0,0.00029589,5]
[398397526,1765601440282,-597.3517137,0.00029589,30]
[398397527,1765601440291,-2055.36,0.000297,3]
[398397528,1765601440301,-40098.4304909,0.0002979,2]
[398397529,1765601440311,-1000.0,0.000298,30]
[398397530,1765601440320,-618.24,0.000298,14]
[398397531,1765601440330,-14884.32,0.000298,2]
[398397532,1765601440339,-2000.0,0.00029863,120]
[398397533,1765601440350,-200.0,0.000299,5]
[398397534,1765601440359,-10977.67822569,0.000299,2]
[398397535,1765601440369,-2000.0,0.00029931,7]
[398397536,1765601440379,-35289.63052552,0.0002999,2]
[398397537,1765601440418,-4401.79933298,0.0002999,2]
[398397538,1765601440434,-500.0,0.00025012,2]
[398397539,1765601440443,-5500.0,0.0002999,2]
[398397540,1765601440454,-10511.41775509,0.0002999,2]
[398397541,1765601440467,-2255.20380549,0.0002999,2]
[398397542,1765601440479,-529.46489486,0.0002999,2]
[398397543,1765601440490,-1519.80331244,0.0002999,2]
[398397544,1765601440501,-1888.3931287,0.0002999,2]
[398397571,1765601443152,-500.0,0.00024738,2]
[398397572,1765601443162,-55.39391085,0.0002499,7]
[398397573,1765601443205,-111.02142115,0.0002499,7]
[398397574,1765601443215,-500.0,0.00025149,2]
[398397575,1765601443224,-25490.41239821,0.0002999,2]
[398397577,1765601446108,-151.0,0.0002499,7]
[398397578,1765601446118,-13129.26215,0.0002999,2]
[398397584,1765601882499,770.9,0.0001,2]
[398397585,1765601882816,770.9,0.000101,2]
[398397586,1765601883107,770.9,0.000102,2]
[398397587,1765601883420,770.9,0.000102,2]
[398397588,1765601883696,770.9,0.000103,2]
[398397589,1765601884001,770.9,0.000104,2]
[398397590,1765601884354,770.9,0.000105,2]
[398397591,1765601884664,770.9,0.000106,2]
[398397592,1765601885016,770.9,0.000107,2]
[398397593,1765601885383,770.9,0.000107,2]
[398397594,1765601885683,770.9,0.000108,2]
[398397595,1765601886827,770.9,0.000109,2]
[398397596,1765601887165,770.9,0.00011,2]
[398397597,1765601887570,770.9,0.000111,2]
[398397598,1765601887938,770.9,0.000111,2]
[398397599,1765601888241,770.9,0.000112,2]
[398397600,1765601888603,770.9,0.000113,2]
[398397601,1765601889217,770.9,0.000114,2]
[398397602,1765601889579,770.9,0.000115,2]
[398397603,1765601889880,770.9,0.000116,2]
[398397604,1765601890215,770.9,0.000116,2]
[398397605,1765601890596,770.9,0.000117,2]
[398397606,1765601891064,770.9,0.000118,2]
[398397607,1765601891418,770.9,0.000119,2]
[398397608,1765601892309,770.9,0.00012,2]
[398397609,1765601892340,770.9,0.00012,2]
[398397610,1765601892371,770.9,0.000121,2]
[398397611,1765601892647,770.9,0.000122,2]
[398397612,1765601892951,770.9,0.000123,2]
[398397613,1765601893473,770.9,0.000124,2]
[398397614,1765601893772,770.9,0.000124,2]
[398397615,1765601894075,770.9,0.000125,2]
[398397616,1765601894383,770.9,0.000126,2]
[398397617,1765601894682,637.23714572,0.000127,2]
[398397618,1765601894706,133.66285428,0.000127,2]
[398397619,1765601894991,770.9,0.000128,2]
[398397620,1765601895307,770.9,0.000129,2]
[398397621,1765601895608,770.9,0.000129,2]
[398397622,1765601895883,770.9,0.00013,2]
[398397623,1765601896162,770.9,0.000131,2]
[398397624,1765601896591,770.9,0.000132,2]
[398397625,1765601896938,770.9,0.000133,2]
[398397626,1765601897216,770.9,0.000133,2]
[398397627,1765601897559,770.9,0.000134,2]
[398397628,1765601897855,770.9,0.000135,2]
[398397629,1765601898160,770.9,0.000136,2]
[398397630,1765601898481,770.9,0.000137,2]
[398397631,1765601898780,770.9,0.000138,2]
[398397632,1765601899090,554.53296381,0.000138,2]
[398397633,1765601899119,216.36703619,0.000138,2]
[398397634,1765601899394,770.9,0.000139,2]
[398397635,1765601900260,770.71,0.0001,2]
[398397636,1765601942563,243.7,0.0001,2]
[398397637,1765601942955,243.7,0.000101,2]
[398397638,1765601943238,243.7,0.000102,2]
[398397639,1765601943579,243.7,0.000102,2]
[398397640,1765601943871,243.7,0.000103,2]
[398397641,1765601944267,243.7,0.000104,2]
[398397642,1765601944604,243.7,0.000105,2]
[398397643,1765601944983,243.7,0.000106,2]
[398397644,1765601945278,243.7,0.000107,2]
[398397645,1765601945586,243.7,0.000107,2]
[398397646,1765601945913,243.7,0.000108,2]
[398397647,1765601946357,243.7,0.000109,2]
[398397648,1765601946762,243.7,0.00011,2]
[398397649,1765601947127,243.7,0.000111,2]
[398397650,1765601947465,243.7,0.000111,2]
[398397651,1765601947797,243.7,0.000112,2]
[398397652,1765601948137,243.7,0.000113,2]
[398397653,1765601948456,243.7,0.000114,2]
[398397654,1765601948757,243.7,0.000115,2]
[398397655,1765601949071,243.7,0.000116,2]
[398397656,1765601949380,243.7,0.000116,2]
[398397657,1765601949680,243.7,0.000117,2]
[398397658,1765601950021,243.7,0.000118,2]
[398397659,1765601950843,243.7,0.000119,2]
[398397660,1765601950872,243.7,0.00012,2]
[398397661,1765601950904,243.7,0.00012,2]
[398397662,1765601951237,243.7,0.000121,2]
[398397663,1765601951632,243.7,0.000122,2]
[398397664,1765601951933,243.7,0.000123,2]
[398397665,1765601952236,243.7,0.000124,2]
[398397666,1765601952544,243.7,0.000124,2]
[398397667,1765601952814,243.7,0.000125,2]
[398397668,1765601953118,243.7,0.000126,2]
[398397669,1765601953419,243.7,0.000127,2]
[398397670,1765601953772,243.7,0.000128,2]
[398397671,1765601953974,243.7,0.000129,2]
[398397672,1765601954903,243.7,0.000129,2]
[398397673,1765601955217,243.7,0.00013,2]
[398397674,1765601955719,243.7,0.000131,2]
[398397675,1765601956002,243.7,0.000132,2]
[398397676,1765601956333,243.7,0.000133,2]
[398397677,1765601956822,8.31,0.000133,2]
[398397678,1765601956854,235.39,0.000133,2]
[398397679,1765601966167,243.7,0.000134,2]
[398397680,1765601966458,243.7,0.000135,2]
[398397681,1765601966741,243.7,0.000136,2]
[398397682,1765601968075,243.7,0.000137,2]
[398397683,1765601968453,243.7,0.000138,2]
[398397684,1765601968843,243.7,0.000138,2]
[398397685,1765601969137,243.7,0.000139,2]
[398397686,1765601969501,243.7,0.00014,2]
[398397687,1765602003130,301.0,6.754e-05,2]
[398397688,1765602019666,150.0,8.911e-05,2]
[398397689,1765602020067,150.0,9.336e-05,2]
[398397690,1765602020834,150.0,9.76e-05,2]
[398397691,1765602020936,176.64,0.00010184,2]
[398397692,1765602021381,220.8,0.00010609,2]
[398397693,1765602021794,264.95,0.00011033,2]
[398397694,1765602022184,309.11,0.00011457,2]
[398397695,1765602022591,353.27,0.00011882,2]
[398397696,1765602022984,397.43,0.00012306,2]
[398397697,1765602023385,441.59,0.0001273,2]
[398397698,1765602089502,150.0,8.843e-05,2]
[398397699,1765602089923,150.0,9.264e-05,2]
[398397700,1765602090325,150.0,9.685e-05,2]
[398397701,1765602090714,175.29,0.00010106,2]
[398397702,1765602091105,219.11,0.00010527,2]
[398397703,1765602091489,262.93,0.00010948,2]
[398397704,1765602091911,306.75,0.00011369,2]
[398397705,1765602092328,350.57,0.0001179,2]
[398397706,1765602092728,394.4,0.00012211,2]
[398397707,1765602093126,438.22,0.00012632,2]
[398397708,1765602157047,150.0,7.059e-05,2]
[398397709,1765602157443,150.0,7.395e-05,2]
[398397710,1765602157885,150.0,7.731e-05,2]
[398397711,1765602158301,176.77,8.067e-05,2]
[398397712,1765602158722,220.97,8.404e-05,2]
[398397713,1765602159141,265.16,8.74e-05,2]
[398397714,1765602159563,309.35,9.076e-05,2]
[398397715,1765602160196,353.55,9.412e-05,2]
[398397716,1765602160596,397.74,9.748e-05,2]
[398397717,1765602161552,129.42,0.00010084,2]
[398397718,1765602161577,312.51,0.00010084,2]
[398397719,1765602228144,150.0,8.998e-05,2]
[398397720,1765602228547,150.0,9.426e-05,2]
[398397721,1765602228962,150.0,9.854e-05,2]
[398397722,1765602229554,172.63,0.00010283,2]
[398397723,1765602230464,215.79,0.00010711,2]
[398397724,1765602230899,258.94,0.0001114,2]
[398397725,1765602231435,302.1,0.00011568,2]
[398397726,1765602231857,345.26,0.00011997,2]
[398397727,1765602232843,388.41,0.00012425,2]
[398397728,1765602232870,431.57,0.00012854,2]
[398397729,1765602277986,404.0,0.00011,3]
[398397730,1765602298714,150.0,8.996e-05,2]
[398397731,1765602304037,150.0,9.424e-05,2]
[398397732,1765602304451,150.0,9.853e-05,2]
[398397733,1765602304858,190.04,0.00010281,2]
[398397734,1765602305259,237.55,0.0001071,2]
[398397735,1765602305883,285.07,0.00011138,2]
[398397736,1765602306303,332.58,0.00011566,2]
[398397737,1765602306704,380.09,0.00011995,2]
[398397738,1765602307122,427.6,0.00012423,2]
[398397739,1765602307536,475.11,0.00012851,2]
[398397744,1765602374497,150.0,9.01e-05,2]
[398397745,1765602374909,150.0,9.439e-05,2]
[398397746,1765602375313,150.0,9.868e-05,2]
[398397747,1765602375743,150.0,0.00010297,2]
[398397748,1765602376141,150.0,0.00010726,2]
[398397749,1765602376556,150.0,0.00011155,2]
[398397750,1765602377494,154.46,0.00011585,2]
[398397751,1765602377890,176.53,0.00012014,2]
[398397752,1765602378313,198.59,0.00012443,2]
[398397753,1765602379349,220.66,0.00012872,2]
[398397754,1765602419352,-289.56773636,0.0002298,2]
[398397755,1765602419375,-24.15272911,0.00023365,2]
[398397761,1765602436085,-125.84727089,0.00023365,2]
[398397762,1765602436105,-313.72046547,0.0002375,2]
[398397763,1765602436127,-206.95094669,0.0002389,2]
[398397764,1765602436147,-593.1150163,0.0002399,2]
[398397765,1765602443063,150.0,9.012e-05,2]
[398397766,1765602443928,150.0,9.441e-05,2]
[398397767,1765602444388,150.0,9.87e-05,2]
[398397768,1765602444789,150.0,0.00010299,2]
[398397769,1765602445747,150.0,0.00010728,2]
[398397770,1765602445777,150.0,0.00011157,2]
[398397771,1765602446444,150.0,0.00011586,2]
[398397772,1765602446873,161.23,0.00012016,2]
[398397773,1765602447283,181.38,0.00012445,2]
[398397774,1765602447709,190.89585506,0.00012874,2]
[398397775,1765602453109,-289.44814953,0.0002399,2]
[398397776,1765602482487,164.75,0.0001,2]
[398397777,1765602490886,172.34773,0.00012474,2]
[398397783,1765602512016,150.0,7.837e-05,2]
[398397784,1765602512413,150.0,8.21e-05,2]
[398397785,1765602512816,69.91641494,8.583e-05,2]
[398397786,1765602512844,80.08358506,8.583e-05,2]
[398397787,1765602513209,150.0,8.956e-05,2]
[398397788,1765602513626,150.0,9.329e-05,2]
[398397789,1765602514469,150.0,9.702e-05,2]
[398397790,1765602514883,150.0,0.00010076,2]
[398397791,1765602515851,154.7,0.00010449,2]
[398397792,1765602515881,174.03,0.00010822,2]
[398397793,1765602542727,220.29,0.0001,2]
[398397794,1765602543830,220.28,0.0001,2]
[398397795,1765602579533,150.0,9.011e-05,2]
[398397796,1765602579935,150.0,9.44e-05,2]
[398397797,1765602580334,150.0,9.869e-05,2]
[398397798,1765602581063,150.0,0.00010298,2]
[398397799,1765602581457,150.0,0.00010727,2]
[398397800,1765602581853,150.0,0.00011156,2]
[398397801,1765602582262,150.0,0.00011585,2]
[398397802,1765602582658,150.0,0.00012014,2]
[398397803,1765602604077,564.33833515,0.00013273,2]
[398397833,1765602632120,-473.19661407,0.0002399,2]
[398397835,1765602632129,-798.0,0.0002399,2]
[398397837,1765602632139,-164.07570427,0.00024574,2]
[398397881,1765602638302,-15.36741633,0.00024574,2]
[398397882,1765602638313,-172.34773,0.00024948,2]
[398397883,1765602638322,-75.55171288,0.00025365,2]
[398397884,1765602638357,-101.44828712,0.00025365,2]
[398397885,1765602638367,-300.0,0.00026088,2]
[398397886,1765602638377,-787.55171288,0.00026089,2]
[398397887,1765602638389,-6398.00871404,0.00026089,2]
[398397888,1765602638400,-4740.22597796,0.00026089,2]
[398397946,1765602640446,-22968.59256272,0.00026089,2]
[398397948,1765602640455,-276.788,0.00026248,12]
[398397949,1765602640465,-204.0,0.00027365,2]
[398397951,1765602640475,-150.0,0.00027397,5]
[398397953,1765602640485,-150.0,0.00027397,5]
[398397955,1765602640494,-250.0,0.00027945,5]
[398397958,1765602640503,-250.0,0.00027945,5]
[398397959,1765602640512,-420.0,0.0002823,2]
[398397962,1765602640523,-193.94252229,0.00028288,2]
[398397963,1765602640533,-1355.7597799,0.00028304,2]
[398397966,1765602640543,-800.0,0.00028346,14]
[398397967,1765602640552,-350.0,0.00028493,5]
[398397969,1765602640562,-350.0,0.00028493,5]
[398397971,1765602640571,-397.8515273,0.0002863,30]
[398397973,1765602640580,-397.8515273,0.0002863,30]
[398397975,1765602640589,-397.8515273,0.0002863,30]
[398397977,1765602640598,-507.53665956,0.00029041,5]
[398397979,1765602640608,-450.0,0.00029041,5]
[398397981,1765602640617,-800.0,0.00029168,14]
[398397983,1765602640626,-185.0051008,0.00029519,2]
[398397985,1765602640635,-550.0,0.00029589,5]
[398397987,1765602640644,-500.0,0.00029726,2]
[398397989,1765602640653,-500.0,0.00029726,2]
[398397991,1765602640663,-150.0,0.00029726,2]
[398397993,1765602640672,-500.0,0.00029863,2]
[398397995,1765602640682,-500.0,0.00029863,2]
[398397997,1765602640691,-150.0,0.00029863,2]
[398397999,1765602640700,-1547.04,0.0002987,10]
[398398001,1765602640710,-166.42391987,0.00029879,2]
[398398003,1765602640719,-500.0,0.0002988,15]
[398398005,1765602640728,-378687.788171,0.0002988,2]
[398398007,1765602640739,-73248.66189879,0.0002989,2]
[398398266,1765602648424,150.0,0.0001029,2]
[398398267,1765602648463,150.0,0.0001078,2]
[398398268,1765602648499,150.0,0.0001127,2]
[398398269,1765602650708,154.39498011,9.277e-05,2]
[398398270,1765602656225,215.6985266,9.277e-05,2]
[398398271,1765602687524,197.01259091,0.00012563,2]
[398398272,1765602802359,185.16978979,8.47e-05,2]
[398398273,1765602977245,5584.01219238,0.00014,2]
[398398274,1765602977266,6384.24957194,0.00014,2]
[398398275,1765602983705,329.0008188,0.00012563,2]
[398398276,1765602986206,252.59111779,9.277e-05,2]
[398398278,1765603000843,-252.59111779,0.00014992,2]
[398398280,1765603031383,150.0,6.855e-05,2]
[398398281,1765603031795,150.0,7.181e-05,2]
[398398282,1765603032207,150.0,7.508e-05,2]
[398398283,1765603033076,150.0,7.834e-05,2]
[398398284,1765603033646,150.0,8.16e-05,2]
[398398285,1765603034189,156.04,8.487e-05,2]
[398398286,1765603034640,182.05,8.813e-05,2]
[398398287,1765603035060,208.05,9.14e-05,2]
[398398288,1765603035448,234.06,9.466e-05,2]
[398398289,1765603035839,260.07,9.793e-05,2]
[398398290,1765603100955,150.0,8.826e-05,2]
[398398291,1765603205123,946.76633968,0.00013562,2]
[398398315,1765603589961,285.12896806,0.00012563,2]
[398398316,1765603626118,-160.0,0.00019589,3]
[398398317,1765603626138,-175.52896093,0.00019831,2]
[398398318,1765603626158,-623.80783159,0.00019831,2]
[398398319,1765603626184,-94.19216841,0.00019831,2]
[398398320,1765603626204,-115.50750646,0.00020392,2]
[398398321,1765603647066,-110.68809088,0.00020392,2]
[398398322,1765603647091,-150.0,0.0002055,2]
[398398323,1765603647111,-216.29960902,0.00020707,2]
[398398324,1765603647129,-252.59111779,0.00020707,2]
[398398325,1765603647149,-127.01342174,0.0002213,2]
[398398326,1765603648070,-158.11554632,0.0002213,2]
[398398327,1765603648090,-177.0,0.0002255,2]
[398398328,1765603648111,-49.21545747,0.0002455,2]
[398398329,1765603725745,160.23,7.2e-05,2]
[398398365,1765603832368,-154.78454253,0.0002455,2]
[398398366,1765603832378,-690.24969143,0.0002455,2]
[398398392,1765603838414,-119.75030857,0.0002455,2]
[398398394,1765603838424,-252.59111779,0.00026422,2]
[398398395,1765603838434,-231.0,0.0002655,2]
[398398396,1765603838444,-150.0,0.00027397,5]
[398398397,1765603838454,-1200.0,0.00027562,2]
[398398398,1765603838463,-1000.0,0.00027563,30]
[398398399,1765603838473,-350.0,0.000278,2]
[398398400,1765603838483,-250.0,0.00027945,5]
[398398401,1765603838492,-700.0,0.00028346,14]
[398398402,1765603838503,-300.0,0.00028492,2]
[398398403,1765603838512,-251.0,0.00028492,2]
[398398404,1765603838522,-350.0,0.00028493,5]
[398398405,1765603838532,-16.62235461,0.0002855,2]
[398398406,1765603838543,-175.37764539,0.0002855,2]
[398398407,1765603838553,-795.283204,0.0002863,30]
[398398408,1765603838563,-238.7510887,0.00028767,30]
[398398409,1765603838573,-257.888,0.00029041,21]
[398398410,1765603838588,-450.0,0.00029041,5]
[398398411,1765603838598,-700.0,0.00029168,14]
[398398412,1765603838608,-137.33296671,0.00029425,30]
[398398413,1765603838621,-247.69102429,0.00029425,30]
[398398414,1765603838630,-192.5119955,0.00029425,30]
[398398415,1765603838640,-192.5119955,0.00029425,30]
[398398416,1765603838649,-192.5119955,0.00029425,30]
[398398417,1765603838884,-970.12688167,0.00029547,2]
[398398453,1765603840614,-1741.39267813,0.00029547,2]
[398398455,1765603840624,-550.0,0.00029589,5]
[398398456,1765603840634,-2103.01048926,0.00029608,2]
[398398457,1765603840643,-20905.43221999,0.0002969,2]
[398398458,1765603840672,-394.56133503,0.0002969,2]
[398398459,1765603840682,-2665.76654565,0.0002969,2]
[398398481,1765603844008,-26431.0148259,0.0002969,2]
[398398494,1765604000085,500.0,0.00014,2]
[398398495,1765604003537,218.8585701,8.47e-05,2]
[398398496,1765604137150,574.484446,0.00013699,2]
[398398498,1765604462077,4983.0,0.00014,2]
[398398529,1765605031549,-166.01,0.0001644,2]
[398398531,1765605031558,-361.57360847,0.0001644,2]
[398398533,1765605031570,-297.42639153,0.0001644,2]
[398398535,1765605031579,-154.19881119,0.0001772,2]
[398398537,1765605031588,-219.29628725,0.00019909,2]
[398398539,1765605031597,-300.0,0.0002,2]
[398398541,1765605031606,-574.484446,0.00020187,2]
[398398543,1765605031615,-300.0,0.00025872,2]
[398398545,1765605031624,-375.0,0.00025872,2]
[398398547,1765605031634,-2156.0,0.00025873,2]
[398398549,1765605031643,-631.0,0.00025873,2]
[398398551,1765605031653,-899.17887393,0.00025873,2]
[398398553,1765605031669,-458.05212607,0.00025873,2]
[398398554,1765605031679,-380.0,0.00026461,2]
[398398555,1765605031688,-401.0,0.00026558,2]
[398398556,1765605031697,-373.0,0.00026558,2]
[398398557,1765605031706,-574.484446,0.00026676,2]
[398398558,1765605031716,-4231.3510014,0.00026875,2]
[398398559,1765605031725,-199.715752,0.00026949,2]
[398398560,1765605031735,-1354.4719537,0.00027103,2]
[398398561,1765605031744,-401.0,0.00027106,2]
[398398562,1765605031753,-150.0,0.00027397,5]
[398398563,1765605031762,-401.0,0.00027654,2]
[398398564,1765605031772,-250.0,0.00027945,5]
[398398565,1765605031781,-193.06996921,0.00028052,2]
[398398566,1765605031790,-401.0,0.00028202,2]
[398398567,1765605031799,-600.0,0.00028346,14]
[398398568,1765605031809,-350.0,0.00028493,5]
[398398569,1765605031818,-401.0,0.0002875,2]
[398398570,1765605031827,-153.0,0.00028767,30]
[398398571,1765605031836,-817.83076399,0.00029,15]
[398398572,1765605031846,-450.0,0.00029041,5]
[398398573,1765605031855,-600.0,0.00029168,14]